{"text_format":"1","workbook":"xlsx","n_sheets":4,"sheets":["First page","Part I","Part II","Buy Back"],"not_rendered":{"charts":0,"images":0,"macros":0,"external_links":0,"defined_names":1,"comments":0,"pivot_tables":0},"unopened":[],"bounds":{"document_bytes":16777216,"sheet_cells":100000,"rows_first":2000,"rows_last":500,"rows_between":2000,"halvings":0,"cell_chars":16384,"cell_head_chars":4096},"cells_cut":0,"cells_raw":0,"read":"whole","date_system":"1900"}

{"sheet":"First page","index":0,"n_rows":27,"n_cols":4,"rows_kept":27,"cut":false,"hidden":false,"merged":[[6,3,6,8],[14,3,14,8],[23,3,23,10],[8,3,8,8],[9,3,9,8],[10,3,10,8],[12,3,12,8]]}
[]
[]
[null,null,"RFP Reference No: LIC/CO/IT-BPR/HW/2024-25/07 Dated: 31.12.2024"]
[]
[null,null,"Indicative Commercial Bid"]
[]
[null,null,"Bidder Name"]
[]
[null,null,"Address"]
[]
[]
[]
[null,null,"Mobile Number"]
[]
[null,null,"Email Id"]
[]
[null,null,"Instructions"]
[null,null,"1. The cells, where bidder has to input values, are highlighted in green."]
[null,null,"2. No changes should be made to the other cells."]
[null,null,"3. Bidder has to compulsorily quote for all the items."]
[null,null,"4. All quotes needs to be in numbers with no decimal points."]
[null,null,"5. Reference should be made to the technical specifications before quoting the amounts."]
[]
[null,null,null,"Note: Soft copy of this Annexure in the given format is to be submitted"]
[]
[]
[null,null,"Date:"]

{"sheet":"Part I","index":1,"n_rows":18,"n_cols":20,"rows_kept":18,"cut":false,"hidden":false,"merged":[[1,1,1,12],[4,12,4,14],[4,15,4,17],[4,18,5,18],[4,0,5,0],[4,1,5,1],[4,2,4,11]]}
[{"$f":"'First page'!$C$3","v":"RFP Reference No: LIC/CO/IT-BPR/HW/2024-25/07 Dated: 31.12.2024"}]
["Bidder:"]
[]
["Indicative Commercial Bid - Part I"]
["Category of PC","Description","Quantity",null,null,null,null,null,null,null,null,null,"Model-1",null,null,"Model-2",null,null,"L1 Model Quote\n(Rupees)\n(Minimum of B, D)","L1 TOTAL"]
[null,null,"NZ","NCZ","CZ","EZ","SCZ","SZ","WZ","ECZ","CO","Total\n(A)","Model","Quote\n(Rupees)\n(B) ","Total\n(Rupees)\n(C) =(A) * (B)","Model","Quote\n(Rupees)\n(D) ","Total\n(Rupees)\n(E) =(A) * (D)",null,"(Rupees)\n(Minimum of C, E)"]
["2A","PC With Windows OS",1818.0,1119.0,694.0,1015.0,1336.0,1289.0,1920.0,1043.0,763.0,{"$f":"SUM(C7:K7)","v":10997.0}]
["2B","PC Without OS",4888.0,3876.0,2019.0,2891.0,5238.0,5146.0,6971.0,2610.0,0.0,{"$f":"SUM(C8:K8)","v":33639.0}]
["2D-1","Developer PC Without OS",1.0,0.0,1.0,0.0,11.0,0.0,10.0,0.0,22.0,{"$f":"SUM(C9:K9)","v":45.0}]
["2D-2","Developer PC With Windows OS",1.0,0.0,2.0,0.0,10.0,2.0,20.0,50.0,130.0,{"$f":"SUM(C10:K10)","v":215.0}]
["AIO","All In One Desktop",2.0,1.0,1.0,1.0,0.0,1.0,1.0,1.0,42.0,{"$f":"SUM(C11:K11)","v":50.0}]
[null,null,null,null,null,null,null,null,null,null,null,null,null,null,null,null,null,null,"Total"]
["All prices should be in Rupees"]
["Prices should be exclusive of GST"]
["ORA will be conducted only for Part-I items"]
[]
[]
["Date:",null,null,null,null,null,null,null,null,null,null,null,null,null,null,null,"    Signature of the Authorised Signatory"]

{"sheet":"Part II","index":2,"n_rows":65,"n_cols":4,"rows_kept":65,"cut":false,"hidden":false,"merged":[]}
[{"$f":"'First page'!$C$3","v":"RFP Reference No: LIC/CO/IT-BPR/HW/2024-25/07 Dated: 31.12.2024"}]
["Bidder:"]
[]
["Indicative Commercial Bid - Part II"]
["Sr. No.","Specifications for Part II items","Quantity","Unit Price"]
[null,"Storage - For Desktops/AIO/Laptops"]
[1.0,"500 GB SATA III -7200 RPM ROHS Certified ",1.0]
[{"$f":"A7+1","v":2.0},"1 TB SATA III -7200 RPM ROHS Certified ",1.0]
[3.0,"256 GB SSD NVMe",1.0]
[4.0,"512 GB SSD NVMe",1.0]
[5.0,"1 TB SSD NVMe",1.0]
[6.0,"2 TB SSD NVMe",1.0]
[7.0,"4 TB SSD NVMe",1.0]
[null,"RAM - For Desktops/Laptops"]
[{"$f":"A13+1","v":8.0},"8 GB  DDR4 2666 MHzROHS Certified",1.0]
[{"$f":"A15+1","v":9.0},"8 GB  DDR4 3200 MHz ROHS Certified",1.0]
[{"$f":"A16+1","v":10.0},"8 GB  DDR5 4800 MHz ROHS Certified",1.0]
[11.0,"16 GB RAM DDR4 2666 MHz ROHS Certified",1.0]
[12.0,"16 GB RAM DDR4 3200 MHz ROHS Certified",1.0]
[13.0,"16 GB  DDR5 4800 MHz ROHS Certified",1.0]
[14.0,"32 GB RAM DDR4 2666 MHz ROHS Certified",1.0]
[15.0,"32 GB RAM DDR4 3200 MHz ROHS Certified",1.0]
[16.0,"32 GB  DDR5 4800 MHz ROHS Certified",1.0]
[null,"RAM - For AIO"]
[{"$f":"A23+1","v":17.0},"16 GB DDR4 3200MHz, ROHS Certified",1.0]
[{"$f":"A25+1","v":18.0},"32 GB DDR4 3200MHz, ROHS Certified",1.0]
[{"$f":"A26+1","v":19.0},"32 GB  DDR5 4800 MHz ROHS Certified",1.0]
[null,"External"]
[{"$f":"A27+1","v":20.0},"1 TB external Hard Disk with USB",1.0]
[{"$f":"A29+1","v":21.0},"2 TB  external Hard Disk with USB \n",1.0]
[{"$f":"A30+1","v":22.0},"4 TB  external Hard Disk with USB \n",1.0]
[23.0,"1TB HDD with TLC",1.0]
[24.0,"1TB SSD with TLC",1.0]
[25.0,"2 TB SSD with TLC",1.0]
[26.0,"4 TB SSD with TLC",1.0]
[27.0,"External USB Portable Speakers",1.0]
[28.0,"External 8x DVD Writer",1.0]
[null,"Monitor"]
[{"$f":"A37+1","v":29.0},"19.5\" TFT Wide (TCO certified)",1.0]
[{"$f":"A39+1","v":30.0},"21.5\" TFT Wide (TCO Certified)",1.0]
[{"$f":"A40+1","v":31.0},"23.8\" TFT Wide (TCO Certified)",1.0]
[{"$f":"A41+1","v":32.0},"23.8\" TFT Wide  Touch (TCO Certified)",1.0]
[null,"Connectors"]
[{"$f":"A42+1","v":33.0},"104 Keys Mechanical Keyboard",1.0]
[{"$f":"A44+1","v":34.0},"2 button USB  Optical Scroll Mouse with Pad",1.0]
[{"$f":"A45+1","v":35.0},"WIRELESS KEYBOARD",1.0]
[{"$f":"A46+1","v":36.0},"WIRELESS MOUSE",1.0]
[null,"Graphics Card"]
[{"$f":"A47+1","v":37.0},"PCI-e based Graphics Card (2 GB RAM)\nNvidia GeForce/AMD Radeon",1.0]
[{"$f":"A49+1","v":38.0},"PCI-e based Graphics Card (4 GB RAM)\nNvidia GeForce/AMD Radeon",1.0]
[null,"Off the shelf Software"]
[{"$f":"A50+1","v":39.0},"Acrobat Pro for teams\nPart no:65324057BA01A12 ",1.0]
[{"$f":"A52+1","v":40.0},"CorelDRAW Graphics Suite Enterprise License (incl. 1 Yr. Corel Sure Maintenance)\nPart number:LCCDGSENTML11",1.0]
[41.0,"CorelDRAW Graphics Suite SU 365-Day Subs \nPart number:LCCDGSSUB11",1.0]
[42.0,"Windows GGWA - Windows 11 Pro ",1.0]
[43.0,"Office LTSC Professional Plus 2021- DG7GMGF0D7FX",1.0]
[44.0,"Office LTSC Standard 2021",1.0]
[45.0,"Office LTSC Standard for Mac 2021",1.0]
[null,"Total"]
["All prices should be in Rupees"]
["Prices should be exclusive of GST"]
["No ORA will be conducted for Part-II items"]
[]
[]
["Date:",null,"Signature of the Authorised Signatory"]

{"sheet":"Buy Back","index":3,"n_rows":20,"n_cols":6,"rows_kept":20,"cut":false,"hidden":false,"merged":[[1,1,1,5]]}
[{"$f":"'First page'!$C$3","v":"RFP Reference No: LIC/CO/IT-BPR/HW/2024-25/07 Dated: 31.12.2024"}]
["Bidder:"]
[]
["Indicative Commercial Bid - Buyback"]
[]
[null,"ITEM","Total Estimated Quantity of Hardware items\n(A)","Base Rate","UNIT RATE\n(B)","TOTAL\n( A x B )"]
[null,"PC",65106.0,400.0]
[null,"AIO",38.0,1000.0]
[]
["All prices should be in Rupees"]
["Prices should be exclusive of GST"]
["No ORA will be conducted for Buy-back items"]
[]
["The above buyback quantity is tentative and is meant to arrive at the L1 vendor. "]
["The exact quantity will be intimated to the vendor at a later stage."]
["It is therefore mandatory that the rate should be submitted."]
[]
[]
[]
["Date:",null,"                               Signature of the Authorised Signatory"]